Cogmind - Beta 16 @@@ ROGUE MODE // 2026.01.17 @ 15:20:37 Player: DreamCore Result: Destroyed by G-67 Veteran with Plasma Rifle Performance ------------- Evolutions (6) 3000 Regions Visited (11) 2200 Robots Destroyed (133) 665 Value Destroyed (6648) 6648 Prototype IDs (4) 80 Alien Tech Used (0) 0 Bonus (1823) 1823 TOTAL SCORE: 14416 Bonus ------- High Alert Combat Kills 1141 Follower Combat Kills 14 Entered Garrisons 200 Used RIF Installer 500 Friendly Fire -32 Cogmind --------- Core Integrity 0/1150 Matter 62/300 Energy 100/100 System Corruption 12% Temperature Cool (0) Movement Core (2350) Ox46 Location -3/Proximity Caves Parts ------- > --- POWER (2) -------- (None) > --- PROPULSION (5) --- (None) > --- UTILITY (7) ------ Cargo Storage Unit Advanced Signal Interpreter Advanced Terrain Scanner Improved Target Analyzer > --- WEAPON (5) ------- (None) > --- INVENTORY (30) --- Light Nuclear Core Light Nuclear Core Neutrino Core Improved Heavy Treads Improved Heat Sink Gravity Neutralizer Transport Network Coupler Kinecellerator Advanced Transmission Jammer Improved Power Shielding Makeshift Heavy Armor Plating Relay Coupler [NC] (32) Relay Coupler [Proto] (9) Relay Coupler [Proto] (9) Tesla Rifle Plasma Rifle Long-range Proton Cannon Heavy Disruptor Cannon Improved Remote Datajack Heavy Mace Powered Hammer Peak State ------------ > --- POWER ------------ Quantum Reactor Quantum Reactor > --- PROPULSION ------- Advanced Medium Treads Improved Heavy Treads Improved Heavy Treads > --- UTILITY ---------- Advanced Heat Sink Advanced Heat Sink Cargo Storage Unit Gravity Neutralizer Long-range Sensor Array Signal Interpreter > --- WEAPON ----------- PD Laser KE Penetrator Enhanced Hardcell Cannon > --- INVENTORY -------- Deuterium Engine Reinforced Deuterium Engine Improved Heavy Treads Improved Heavy Treads Improved Heat Sink Advanced Heat Sink Coolant Injector Gravity Neutralizer Transport Network Coupler Improved Target Analyzer Kinecellerator Weapon Cycler Advanced Transmission Jammer Relay Coupler [NC] Relay Coupler [Proto] Relay Coupler [Proto] Tesla Rifle Enhanced Quantum Rifle Enhanced Quantum Rifle Enhanced Quantum Rifle Enhanced Nova Cannon Heavy Machine Gun Heavy Linear Accelerator Improved Concussive RPG Improved Remote Datajack Plasma Cutter Heavy Mace [Rating: 132] Favorites ----------- Power Quantum Reactor Engine Reinforced Deuterium Engine Power Core Neutrino Core Reactor Quantum Reactor Propulsion Improved Heavy Treads Treads Improved Heavy Treads Leg Flexi-carbon Leg Utility Advanced Heat Sink Device Advanced Heat Sink Storage Cargo Storage Unit Processor Signal Interpreter Protection Improved Medium Armor Plating Weapon Enhanced Quantum Rifle Energy Gun Enhanced Quantum Rifle Energy Cannon Enhanced Nova Cannon Ballistic Gun KE Penetrator Ballistic Cannon Enhanced Hardcell Cannon Launcher Improved Concussive RPG Special Weapon Plasma Cutter Slashing Weapon Mining Claw Build | -11 -10 -10 -7 -5 -5 -5 -4 -4 -4 -4 -3 ------- Run | Yrd Mat Sub Scr Fac Gar Fac Fac Upp Upp Zhi Pro Slots Evolved 12 | . . . . 10 . . 2 . . . . Power 1 | . . . . 1 . . . . . . . Propulsion 3 | . . . . 3 . . . . . . . Utility 5 | . . . . 4 . . 1 . . . . Weapon 3 | . . . . 2 . . 1 . . . . Parts Attached 110 | . 10 5 1 7 54 2 15 . 8 2 6 Power 17 | . 2 1 . . 9 . 3 . 1 . 1 Engine 9 | . 2 1 . . 4 . 2 . . . . Core 1 | . . . . . 1 . . . . . . Reactor 7 | . . . . . 4 . 1 . 1 . 1 Propulsion 30 | . 4 . 1 2 15 . 4 . 2 . 2 Treads 18 | . 2 . 1 2 5 . 4 . 2 . 2 Leg 12 | . 2 . . . 10 . . . . . . Wheel . | . . . . . . . . . . . . Hover . | . . . . . . . . . . . . Flight . | . . . . . . . . . . . . Utility 32 | . 3 1 . 1 16 1 5 . 3 1 1 Device 24 | . 2 1 . . 13 1 3 . 2 1 1 Storage 2 | . 1 . . . 1 . . . . . . Processor 4 | . . . . 1 1 . 1 . 1 . . Hackware . | . . . . . . . . . . . . Protection 2 | . . . . . 1 . 1 . . . . Artifact . | . . . . . . . . . . . . Weapon 31 | . 1 3 . 4 14 1 3 . 2 1 2 Energy Gun 11 | . 1 1 . 1 5 . 2 . 1 . . Energy Cannon 3 | . . . . 1 1 . . . . . 1 Ballistic Gun 9 | . . 1 . . 6 1 1 . . . . Ballistic Cannon 5 | . . . . 2 1 . . . 1 1 . Launcher 1 | . . . . . . . . . . . 1 Special Weapon 1 | . . . . . 1 . . . . . . Impact Weapon . | . . . . . . . . . . . . Slashing Weapon 1 | . . 1 . . . . . . . . . Piercing Weapon . | . . . . . . . . . . . . Special Melee Weapon . | . . . . . . . . . . . . Unidentified Prototypes 2 | . . 1 . . 1 . . . . . . Parts Lost 57 | . . 2 . . 24 . 8 1 2 . 20 Power 9 | . . 1 . . 3 . 2 . . . 3 Propulsion 16 | . . . . . 7 . 1 1 1 . 6 Utility 13 | . . . . . 6 . 3 . . . 4 Weapon 19 | . . 1 . . 8 . 2 . 1 . 7 Highest Loss Streak 14 | . . 1 . . 14 . 5 1 1 . 11 To Critical Strikes . | . . . . . . . . . . . . Average Backups 18 | 6 7 10 14 10 17 24 24 23 25 25 25 Power 2 | 1 1 . . . 1 2 2 4 4 4 3 Propulsion 1 | 4 2 . 1 . 1 3 2 2 1 1 2 Utility 6 | . . 1 2 . 5 10 10 9 9 10 9 Weapon 6 | 1 3 6 9 7 6 7 6 5 6 7 8 Tool/Special . | . . . . . . . . . . . . Unused Backups 44 | . 8 . . . 15 . 1 . . . 20 Power 10 | . 1 . . . 5 . . . . . 4 Propulsion 4 | . 3 . . . . . . . . . 1 Utility 18 | . 2 . . . 6 . 1 . . . 9 Weapon 9 | . 2 . . . 2 . . . . . 5 Tool/Special 3 | . . . . . 2 . . . . . 1 Average Slot Usage (%) 87 | . 96 100 100 71 85 82 75 87 85 86 76 Engine 7 | . 14 14 14 5 1 . 2 10 9 5 3 Reactor 3 | . . . . . 7 11 6 . . 5 6 Treads 16 | . 3 28 28 22 9 17 15 18 17 21 16 Leg 4 | . 24 . . . 11 . . . . . . Device 13 | . 10 14 14 9 15 17 17 10 10 12 14 Storage 7 | . 14 14 14 5 5 5 5 5 5 5 5 Processor 5 | . . . . 4 6 5 6 10 10 10 10 Protection 1 | . . . . . . . . 5 5 2 . Energy Gun 9 | . 28 19 . . 4 5 7 15 15 10 4 Energy Cannon 1 | . . . . 4 3 5 . . . . . Ballistic Gun 5 | . . 7 14 4 6 5 5 5 2 . . Ballistic Cannon 4 | . . . . 9 5 5 5 5 7 9 9 Slashing Weapon 1 | . . . 14 . . . . . . . . Peak Build Rating 132 | 6 10 13 15 29 128 121 132 113 119 119 114 Average Rating 77 | 6 8 11 13 27 94 121 119 110 109 114 108 On Entrance 64 | 6 6 9 13 15 29 121 121 113 108 119 113 Avg Prop Armor Cover (%) 4 | . . . . . 4 . . . . . . Naked Turns . | . . . . . . . . . . . . Heaviest Build 230 | 14 30 31 31 44 219 219 212 209 222 223 230 Greatest Support 192 | 20 40 40 42 82 190 190 192 155 153 153 153 Greatest Overweight (x) 58 | . . . . . 19 1 1 1 1 1 58 Average Overweight (x) . | . . . . . . 1 1 1 1 1 1 Largest Inventory Capacity 30 | 8 15 15 15 15 30 30 30 30 30 30 30 Average Capacity 22 | 8 8 15 15 15 20 30 30 30 30 30 30 Most Carried 30 | 6 8 13 15 14 30 30 30 29 30 30 30 Average Carried 21 | 6 7 10 14 9 19 30 27 27 29 29 28 Final Capacity 30 | 8 15 15 15 15 30 30 30 30 30 30 30 Final Carried 30 | 6 6 13 15 10 30 30 27 29 30 28 24 Class Distribution -------------------- 37% | Scavenger-Tank 29% | Mutant 19% | Scavenger-Gunner 4% | Hauler-Tank 3% | Hauler-Gunner 3% | Scavenger-Skirmisher Dominant Class ---------------- Mutant | -10/Materials Mutant | -10/Subcaves Mutant | -7/Scraptown Derelict-Gunner | -5/Factory Scavenger-Gunner | -5/Garrison Scavenger-Tank | -5/Factory Scavenger-Tank | -4/Factory Scavenger-Tank | -4/Upper Caves Scavenger-Tank | -4/Upper Caves Scavenger-Tank | -4/Zhirov Scavenger-Gunner | -3/Proximity Caves Resources | -11 -10 -10 -7 -5 -5 -5 -4 -4 -4 -4 -3 ----------- Run | Yrd Mat Sub Scr Fac Gar Fac Fac Upp Upp Zhi Pro Matter Collected 4679 | 200 100 110 . . 2049 56 831 116 380 . 837 Remotely . | . . . . . . . . . . . . Salvage Created 7276 | . 842 81 . . 2911 341 1772 199 325 . 805 Parts 311 | . 48 2 . . 119 7 87 6 14 . 28 Haulers Intercepted 3 | . 2 . . . . 1 . . . . . Recyclers Shooed . | . . . . . . . . . . . . Parts Field Recycled . | . . . . . . . . . . . . Retrieved Matter . | . . . . . . . . . . . . Parts Self-Destructed 42 | . . 9 . . . . . 6 10 . 17 Prevented 6 | . . . . . . . . . 6 . . Parts Restored . | . . . . . . . . . . . . Kills | -11 -10 -10 -7 -5 -5 -5 -4 -4 -4 -4 -3 ------- Run | Yrd Mat Sub Scr Fac Gar Fac Fac Upp Upp Zhi Pro Combat Hostiles Destroyed 109 | . 13 2 . . 38 2 31 4 8 . 11 Guns 73 | . 13 2 . . 23 1 24 3 5 . 2 Cannons 32 | . . . . . 12 1 7 1 2 . 9 Classes Destroyed 17 | . 6 2 . . 8 1 . . . . . Worker 6 | . 4 . . . . . 2 . . . . Builder 5 | . 1 . . . . . 4 . . . . Hauler 3 | . 2 . . . . 1 . . . . . Recycler 4 | . . . . . . 1 3 . . . . Operator 2 | . 1 . . . . . 1 . . . . Turret 2 | . . 2 . . . . . . . . . Watcher 2 | . 1 . . . 1 . . . . . . Swarmer 27 | . . 2 . . 1 . 13 2 4 . 5 Cutter 3 | . . . . . 3 . . . . . . Grunt 44 | . 13 . . . 13 2 8 . 3 . 5 Brawler 2 | . . . . . 1 . . . . . 1 Duelist 3 | . . . . . 3 . . . . . . Sentry 12 | . . . . . 7 . 4 1 . . . Specialist 4 | . . . . . 4 . . . . . . Hunter 4 | . . . . . 4 . . . . . . Programmer 7 | . . . . . 1 . 6 . . . . Behemoth 3 | . . . . . 1 . . 1 1 . . Best Kill Streak 13 | . 3 2 . . 4 3 13 3 4 . 5 Combat Bots Only 13 | . 3 2 . . 4 2 13 3 4 . 5 Max Kills in Single Turn 3 | . 2 1 . . 2 2 3 1 1 . 1 Gunslinging . | . . . . . . . . . . . . Exploded . | . . . . . . . . . . . . Melee . | . . . . . . . . . . . . Uniques/NPCs Destroyed . | . . . . . . . . . . . . Combat | -11 -10 -10 -7 -5 -5 -5 -4 -4 -4 -4 -3 -------- Run | Yrd Mat Sub Scr Fac Gar Fac Fac Upp Upp Zhi Pro Hostile Shots Fired 849 | . 50 91 . . 304 6 191 14 31 . 162 Missed 282 | . 29 41 . . 99 1 62 3 10 . 37 Hits 567 | . 21 50 . . 205 5 129 11 21 . 125 Melee 9 | . . . . . 9 . . . . . . Projectile 558 | . 21 50 . . 196 5 129 11 21 . 125 Critical Strikes 19 | . . . . . 8 . 4 . . . 7 Damage Taken 11461 | . 248 344 . . 4272 161 2606 244 446 . 3140 Core 1624 | . 66 46 . . 331 21 242 17 23 . 878 Absorbed by Shields . | . . . . . . . . . . . . Regen/Repaired (Parts) 38 | . 38 . . . . . . . . . . Core Remaining (%) 73 | 100 . . 55 . . 64 . . . . . Volleys Fired 409 | . 51 20 . . 211 3 52 6 12 10 44 Largest 5 | . 2 2 . . 4 4 5 5 5 3 4 Hottest 313 | . 90 78 . . 276 276 283 283 304 186 313 Shots Fired 1136 | . 102 40 . . 514 12 223 31 61 17 136 Gun 723 | . 102 40 . . 293 6 173 25 41 4 39 Cannon 348 | . . . . . 171 6 50 6 20 6 89 Launcher 1 | . . . . . . . . . . . 1 Special 64 | . . . . . 50 . . . . 7 7 Kinetic 574 | . . 20 . . 309 6 114 12 25 6 82 Thermal 466 | . 37 12 . . 205 6 109 19 35 7 36 Explosive 1 | . . . . . . . . . . . 1 Electromagnetic 95 | . 65 8 . . . . . . 1 4 17 Robot Hit Streak 21 | . 13 5 . . 17 2 8 21 7 . 11 Robot Miss Streak 14 | . 4 3 . . 5 2 14 2 4 . 8 Penetration Max 1 | . . . . . 1 1 1 . . . 1 Secondary Targets 2 | . . 1 . . 1 . . . . . . Max Gunslinging Chain 1 | . . 1 . . 1 . . . . . . Autonomous 47 | . . . . . . . 47 . . . . Shots Hit Robots 628 | . 66 22 . . 300 6 130 20 26 . 58 Core Hits 267 | . 29 8 . . 115 4 66 8 13 . 24 Critical Kills 6 | . . . . . 4 . 2 . . . . Critical Parts Destroyed 10 | . . 1 . . 7 . 2 . . . . Critical Strikes 43 | . 2 1 . . 16 . 8 . 2 . 14 Burn 2 | . 1 . . . 1 . . . . . . Meltdown 3 | . . . . . 3 . . . . . . Destroy 14 | . . 1 . . 8 . 5 . . . . Blast 21 | . . . . . 3 . 3 . 2 . 13 Corrupt 2 | . 1 . . . . . . . . . 1 Sever 1 | . . . . . 1 . . . . . . Melee Attacks 13 | . . 13 . . . . . . . . . Impact . | . . . . . . . . . . . . Slashing 13 | . . 13 . . . . . . . . . Piercing . | . . . . . . . . . . . . Sneak Attacks . | . . . . . . . . . . . . Combat Hostiles . | . . . . . . . . . . . . Follow-up Attacks . | . . . . . . . . . . . . Damage Inflicted 19029 | . 1043 313 . . 7392 323 5319 674 850 . 3115 Guns 11228 | . 934 313 . . 4287 148 3980 499 505 . 562 Cannons 7153 | . . . . . 2607 175 1320 175 345 . 2531 Explosions 109 | . 109 . . . . . . . . . . Melee . | . . . . . . . . . . . . Ramming 19 | . . . . . . . 19 . . . . Kinetic 9793 | . . 134 . . 4239 252 2235 247 370 . 2316 Thermal 8199 | . 362 125 . . 3153 71 3065 427 454 . 542 Explosive . | . . . . . . . . . . . . Electromagnetic 1018 | . 681 54 . . . . . . 26 . 257 Impact . | . . . . . . . . . . . . Slashing . | . . . . . . . . . . . . Piercing . | . . . . . . . . . . . . Highest Corruption 12 | . . . . . . . 12 12 12 12 12 Average Corruption 11 | . . . . . . . 7 12 12 12 12 Corruption Purged . | . . . . . . . . . . . . Corruption Blocked . | . . . . . . . . . . . . Effects 203 | . . . . . . . 37 28 70 4 64 Message Errors 49 | . . . . . . . 7 8 20 . 14 Matter Fused 57 | . . . . . . . 9 5 20 3 20 Heat Flow Errors 20 | . . . . . . . 3 3 8 . 6 Energy Discharges 22 | . . . . . . . 4 3 7 . 8 Parts Rejected 1 | . . . . . . . . . 1 . . Parts Fused 2 | . . . . . . . 1 . . . 1 Data Loss (minor) 22 | . . . . . . . 3 5 5 . 9 Data Loss (major) 8 | . . . . . . . 2 . 3 . 3 Misfires 7 | . . . . . . . 2 1 3 1 . Alerts 6 | . . . . . . . . 3 1 . 2 Weapon Failures 9 | . . . . . . . 6 . 2 . 1 Overload Shots . | . . . . . . . . . . . . Overflow Damage 435 | . . . . . 20 8 50 . . . 357 Projectiles 435 | . . . . . 20 8 50 . . . 357 Explosions . | . . . . . . . . . . . . Melee . | . . . . . . . . . . . . Knockbacks 40 | . . . . . 11 2 11 . 2 . 14 Impact . | . . . . . . . . . . . . Kinetic 36 | . . . . . 11 1 10 . 2 . 12 Secondary 4 | . . . . . . 1 1 . . . 2 Self-Inflicted Damage 59 | . . . . . 27 . . . . . 32 Shots 2 | . . . . . 1 . . . . . 1 Rammed 3 | . . . . . . 1 2 . . . . Targets Rammed 5 | . . . . . . 1 4 . . . . Kicked . | . . . . . . . . . . . . Crushed 2 | . . . . . . . 2 . . . . Highest Temperature 866 | . 150 21 . . 408 185 376 225 469 128 866 Average Temperature 127 | . 36 10 . . 116 87 88 80 170 72 208 Received Heat Transfer 1711 | . 135 279 . . 543 39 253 9 9 . 444 Effects 30 | . . . . . 3 . 1 . 5 . 21 Shutdowns 10 | . . . . . 2 . 1 . 3 . 4 Energy Bleed 6 | . . . . . . . . . 2 . 4 Interference 2 | . . . . . . . . . . . 2 Matter Decay 2 | . . . . . . . . . . . 2 Short Circuit 3 | . . . . . 1 . . . . . 2 Damage (minor) 4 | . . . . . . . . . . . 4 Damage (core) 3 | . . . . . . . . . . . 3 Siege Activations . | . . . . . . . . . . . . Martial Activations . | . . . . . . . . . . . . Shielding Activations . | . . . . . . . . . . . . Robots Disrupted . | . . . . . . . . . . . . Combat Hostiles . | . . . . . . . . . . . . Robots Corrupted 3 | . . . . . . 1 . . 1 . 1 Combat Hostiles 1 | . . . . . . . . . 1 . . Parts Fried 5 | . 1 . . . . 3 . . . . 1 Impact Corruptions 3 | . . . . . . 1 . . . . 2 Robots Melted 3 | . . . . . 3 . . . . . . Combat Hostiles 3 | . . . . . 3 . . . . . . Parts Melted 18 | . 4 . . . 7 . 5 2 . . . Heat Transferred 11234 | . 964 370 . . 5032 74 3092 518 555 . 629 Parts Sabotaged . | . . . . . . . . . . . . Parts Stolen . | . . . . . . . . . . . . Parts Stripped . | . . . . . . . . . . . . Power Chain Reactions 2 | . 2 . . . . . . . . . . Alert | -11 -10 -10 -7 -5 -5 -5 -4 -4 -4 -4 -3 ------- Run | Yrd Mat Sub Scr Fac Gar Fac Fac Upp Upp Zhi Pro Maximum Alert Level 5 | . . . . . 5 3 3 . . . . Low Security (%) 28 | 100 100 . . 100 14 . . . . . . Level 1 13 | . . . . . 22 . 7 . . . . Level 2 17 | . . . . . 8 . 59 . . . . Level 3 21 | . . . . . 22 100 32 . . . . Level 4 10 | . . . . . 19 . . . . . . Level 5 7 | . . . . . 13 . . . . . . High Security . | . . . . . . . . . . . . Max Security . | . . . . . . . . . . . . Peak Influence 1967 | . 167 . . . 1967 1057 1037 . . . . Initial 1032 | . . . . . . 1032 512 . . . . Average 622 | . 52 . . . 825 1024 614 . . . . Influence Increases 5111 | . 485 648 . . 2247 85 1066 90 195 . 295 Destroy 0b10 Robot/C 2260 | . 260 120 . . 760 40 620 80 160 . 220 Destroy 0b10 Robot/NC 140 | . 45 . . . 35 10 50 . . . . Destroy Leader 278 | . 56 . . . 20 12 130 10 20 . 30 Allied During Kill 14 | . . 3 . . 11 . . . . . . Successful Hack 93 | . 70 . . . 23 . . . . . . Disable Machine 150 | . 45 . . . 15 . 90 . . . . Anti-Garrison Action 1100 | . . . . . 1100 . . . . . . Destroy Structure 386 | . 9 . . . 253 8 116 . . . . Partial Spotted 15 | . . . . . . 15 . . . . . Lose Combat Pursuer 675 | . . 525 . . 30 . 60 . 15 . 45 Influence Decreases 5111 | . 342 403 388 . 280 1005 1093 744 561 . 295 Entered New Map 2376 | . . 70 388 . . 935 535 378 70 . . Time Decay 2166 | . 342 273 . . . 70 478 356 471 . 176 Lost Part 489 | . . 20 . . 240 . 80 10 20 . 119 Lost Ally 80 | . . 40 . . 40 . . . . . . Squads Dispatched 10 | . 3 . . . . 1 6 . . . . Investigation 3 | . 2 . . . . . 1 . . . . Extermination 2 | . . . . . . . 2 . . . . Reinforcement 1 | . 1 . . . . . . . . . . Assault . | . . . . . . . . . . . . Garrison 4 | . . . . . . 1 3 . . . . Intercept . | . . . . . . . . . . . . Searches Triggered . | . . . . . . . . . . . . Construction Impeded . | . . . . . . . . . . . . Haulers Reinforced . | . . . . . . . . . . . . Active Scanning Responses . | . . . . . . . . . . . . Cargo Convoy Interrupts . | . . . . . . . . . . . . Stealth | -11 -10 -10 -7 -5 -5 -5 -4 -4 -4 -4 -3 --------- Run | Yrd Mat Sub Scr Fac Gar Fac Fac Upp Upp Zhi Pro Distress Signals 4 | . 1 . . . 2 . 1 . . . . Communications Jammed . | . . . . . . . . . . . . Distress Signals . | . . . . . . . . . . . . Times Spotted 167 | . 18 25 . . 50 2 43 4 8 . 17 Peak Tracking Total 8 | . 3 6 . . 8 2 7 3 4 . 5 Tactical Retreats 11 | . . 5 . . 1 . 3 . 1 . 1 Traps | -11 -10 -10 -7 -5 -5 -5 -4 -4 -4 -4 -3 ------- Run | Yrd Mat Sub Scr Fac Gar Fac Fac Upp Upp Zhi Pro Traps Triggered 8 | . 1 . . . 5 1 1 . . . . Indirectly . | . . . . . . . . . . . . Trap Hack Attempts . | . . . . . . . . . . . . Triggered . | . . . . . . . . . . . . Disarmed . | . . . . . . . . . . . . Reprogrammed . | . . . . . . . . . . . . Reused . | . . . . . . . . . . . . Traps Extracted . | . . . . . . . . . . . . Installed . | . . . . . . . . . . . . Triggered . | . . . . . . . . . . . . Machines | -11 -10 -10 -7 -5 -5 -5 -4 -4 -4 -4 -3 ---------- Run | Yrd Mat Sub Scr Fac Gar Fac Fac Upp Upp Zhi Pro Machines Disabled 21 | . 3 2 . . 10 . 6 . . . . Max in Single Turn 2 | . 1 1 . . 2 . 1 . . . . Garrison Access 1 | . . . . . . . 1 . . . . Garrison Relay 3 | . . . . . 3 . . . . . . Phase Generator 1 | . . . . . 1 . . . . . . Machines Repaired . | . . . . . . . . . . . . Machines Dismantled . | . . . . . . . . . . . . Machines Sabotaged . | . . . . . . . . . . . . Overloaded Fab Kills . | . . . . . . . . . . . . Hacking | -11 -10 -10 -7 -5 -5 -5 -4 -4 -4 -4 -3 --------- Run | Yrd Mat Sub Scr Fac Gar Fac Fac Upp Upp Zhi Pro Machines Accessed 21 | . 8 . 3 1 3 . 6 . . . . Terminals 12 | . 7 . . . 3 . 2 . . . . Fabricators 1 | . . . . . . . 1 . . . . Repair Stations 2 | . 1 . . . . . 1 . . . . Recycling Units . | . . . . . . . . . . . . Scanalyzers 1 | . . . . . . . 1 . . . . Garrison Access 2 | . . . . 1 . . 1 . . . . Total Hacks 69 | . 21 . 23 4 6 . 15 . . . . Successful 49 | . 15 . 23 1 2 . 8 . . . . Failed 17 | . 5 . . 3 4 . 5 . . . . Catastrophic 3 | . . . . 1 1 . 1 . . . . Database Lockouts 3 | . 1 . . . . . 2 . . . . Manual 17 | . 15 . 2 . . . . . . . . Terminals 32 | . 19 . . . 6 . 7 . . . . Fabricators 1 | . . . . . . . 1 . . . . Repair Stations 4 | . 2 . . . . . 2 . . . . Recycling Units . | . . . . . . . . . . . . Scanalyzers 3 | . . . . . . . 3 . . . . Garrison Access 6 | . . . . 4 . . 2 . . . . Terminal Hacks 34 | . 6 . 23 . 2 . 3 . . . . Record 26 | . . . 23 . . . 3 . . . . Robot Analysis 4 | . 4 . . . . . . . . . . Prototype ID Bank 1 | . 1 . . . . . . . . . . Open Door 1 | . . . . . 1 . . . . . . Terminal Index 1 | . 1 . . . . . . . . . . Security Stations 1 | . . . . . 1 . . . . . . Fabricator Hacks 1 | . . . . . . . 1 . . . . Network Status 1 | . . . . . . . 1 . . . . Repair Station Hacks 3 | . 2 . . . . . 1 . . . . Scan Component 2 | . 1 . . . . . 1 . . . . Repair 1 | . 1 . . . . . . . . . . Recycling Unit Hacks . | . . . . . . . . . . . . Scanalyzer 1 | . . . . . . . 1 . . . . Retrieve Study 1 | . . . . . . . 1 . . . . Garrison Access Hacks 3 | . . . . 1 . . 2 . . . . Unlock Access 1 | . . . . 1 . . . . . . . Seal Access 1 | . . . . . . . 1 . . . . Coupler Status 1 | . . . . . . . 1 . . . . Unauthorized Hacks 7 | . 7 . . . . . . . . . . Terminals 7 | . 7 . . . . . . . . . . Botnet 7 | . 7 . . . . . . . . . . Fabricators . | . . . . . . . . . . . . Repair Stations . | . . . . . . . . . . . . Recycling Units . | . . . . . . . . . . . . Scanalyzers . | . . . . . . . . . . . . Garrison Access . | . . . . . . . . . . . . Data Cores Recovered 2 | . 1 . . . . . 1 . . . . Used . | . . . . . . . . . . . . Hacking Detections 14 | . 6 . . 1 2 . 5 . . . . Full Trace Events 2 | . 1 . . . . . 1 . . . . Feedback Events . | . . . . . . . . . . . . Feedback Blocked . | . . . . . . . . . . . . Robot Schematics Acquired . | . . . . . . . . . . . . Robots Built . | . . . . . . . . . . . . Authchips . | . . . . . . . . . . . . Time . | . . . . . . . . . . . . Total Robot Build Rating . | . . . . . . . . . . . . Part Schematics Acquired . | . . . . . . . . . . . . Parts Built . | . . . . . . . . . . . . Authchips . | . . . . . . . . . . . . Time . | . . . . . . . . . . . . Total Part Build Rating . | . . . . . . . . . . . . Part Studies Acquired 1 | . . . . . . . 1 . . . . Parts Repaired 1 | . 1 . . . . . . . . . . Time 26 | . 26 . . . . . . . . . . Parts Recycled . | . . . . . . . . . . . . Recycled Matter . | . . . . . . . . . . . . Retrieved Matter . | . . . . . . . . . . . . Retrieved Components . | . . . . . . . . . . . . Parts Scanalyzed . | . . . . . . . . . . . . Part Schematics Acquired . | . . . . . . . . . . . . Parts Damaged . | . . . . . . . . . . . . Bothacking | -11 -10 -10 -7 -5 -5 -5 -4 -4 -4 -4 -3 ------------ Run | Yrd Mat Sub Scr Fac Gar Fac Fac Upp Upp Zhi Pro Used RIF Installer 1 | . . . . . 1 . . . . . . Robots Hacked . | . . . . . . . . . . . . Non-combat . | . . . . . . . . . . . . Combat . | . . . . . . . . . . . . Robot Hacks Applied . | . . . . . . . . . . . . Relay Couplers Released 11 | . . . . . 11 . . . . . . Machine Destruction 11 | . . . . . 11 . . . . . . Fabnet Peak Effective % . | . . . . . . . . . . . . Robots Rewired . | . . . . . . . . . . . . Allies Hacked . | . . . . . . . . . . . . Hacks Repelled . | . . . . . . . . . . . . Allies | -11 -10 -10 -7 -5 -5 -5 -4 -4 -4 -4 -3 -------- Run | Yrd Mat Sub Scr Fac Gar Fac Fac Upp Upp Zhi Pro Total Allies 4 | . . 3 . . 1 . . . . . . Largest Group 2 | . . 2 1 1 1 . . . . . . Highest-Rated Group 46 | . . 38 19 19 46 . . . . . . Highest-Rated Ally 46 | . . 19 19 19 46 . . . . . . Total Orders . | . . . . . . . . . . . . Ally Attacks 29 | . . 8 . . 21 . . . . . . Total Damage 393 | . . 146 . . 247 . . . . . . Kills 2 | . . 2 . . . . . . . . . Allies Corrupted . | . . . . . . . . . . . . Allies Melted . | . . . . . . . . . . . . Intel | -11 -10 -10 -7 -5 -5 -5 -4 -4 -4 -4 -3 ------- Run | Yrd Mat Sub Scr Fac Gar Fac Fac Upp Upp Zhi Pro Active Infowar (turns) 3173 | . . . . . . . 145 . 1197 105 1726 Sensors 406 | . . . . . . . 145 . . 54 207 Terrain 2802 | . . . . . . . . . 971 105 1726 Seismic 226 | . . . . . . . . . 226 . . Robot Analysis Total 4 | . 4 . . . . . . . . . . Derelict Logs Recovered 6 | . . 1 2 . . . . 1 2 . . Drone Launches . | . . . . . . . . . . . . Drone Recoveries . | . . . . . . . . . . . . Exploration | -11 -10 -10 -7 -5 -5 -5 -4 -4 -4 -4 -3 ------------- Run | Yrd Mat Sub Scr Fac Gar Fac Fac Upp Upp Zhi Pro Turns Passed 12611 | 2 1125 955 1619 69 3123 143 1230 815 1673 105 1752 Spaces Moved 5681 | 2 735 515 1030 36 1203 53 420 347 701 29 610 Core 19 | . . . . . 18 . . . . . 1 Treads 4414 | . 81 515 1030 36 593 53 420 347 701 29 609 Legs 1248 | 2 654 . . . 592 . . . . . . Wheels . | . . . . . . . . . . . . Hover . | . . . . . . . . . . . . Flight . | . . . . . . . . . . . . Fastest Speed 120 | 120 120 160 152 158 120 243 226 228 229 232 229 Average Speed 191 | 120 124 160 156 158 192 243 231 228 230 232 260 Slowest Speed 2950 | 120 160 160 160 158 1000 243 243 229 232 232 2950 Overloaded Moves . | . . . . . . . . . . . . Propulsion Burnouts . | . . . . . . . . . . . . Robots Hopped . | . . . . . . . . . . . . Potential Cave-ins . | . . . . . . . . . . . . Cave-ins Triggered 1 | . . . . . . . 1 . . . . Exploration Rate (%) 43 | 2 99 24 60 1 96 2 13 56 88 7 76 Regions Visited 11 Branch Regions 6 Pre-discovered Areas 3 | . . . 1 . . . . . 2 . . Known Exits Taken 6 | . . . . 1 . 1 1 1 1 1 . Unknown Exits Taken 4 | 1 1 1 1 . . . . . . . . Scrap Searched 13 | . . 7 . . . . . 1 4 . 1 Spaces Dug 13 | . . . . . 7 . . . . 6 . Terrain Destroyed 370 | . 7 . . . 182 4 62 7 27 6 75 Melee . | . . . . . . . . . . . . Projectile 214 | . . . . . 42 4 62 7 27 6 66 AOE 156 | . 7 . . . 140 . . . . . 9 Terrain Rammed . | . . . . . . . . . . . . Walls Destroyed . | . . . . . . . . . . . . Machines Disabled . | . . . . . . . . . . . . Actions | -11 -10 -10 -7 -5 -5 -5 -4 -4 -4 -4 -3 --------- Run | Yrd Mat Sub Scr Fac Gar Fac Fac Upp Upp Zhi Pro Total 6559 | 1 848 581 1035 46 1634 60 552 354 729 46 673 Wait 129 | . 36 20 . . 29 . 41 . . 1 2 Move 5671 | 1 734 514 1029 36 1202 52 419 346 700 28 610 Hop . | . . . . . . . . . . . . Pick Up 115 | . 6 9 3 1 69 . 13 2 6 . 6 Fast Attach 18 | . 2 . . . 12 . 2 . 2 . . Attach 67 | . . 2 . 6 31 . 14 . 4 1 9 Detach 3 | . . . . . . . 1 . . 2 . Swap 44 | . 8 3 1 3 21 2 1 . 2 2 1 Drop 76 | . 11 . 2 . 50 2 5 . 3 2 1 Fire 409 | . 51 20 . . 211 3 52 6 12 10 44 Melee 13 | . . 13 . . . . . . . . . Ram . | . . . . . . . . . . . . Kick . | . . . . . . . . . . . . Crush 5 | . . . . . . 1 4 . . . . Escape Stasis 9 | . . . . . 9 . . . . . . Rewire . | . . . . . . . . . . . . Trap . | . . . . . . . . . . . . Miscellaneous . | . . . . . . . . . . . . Route ------- -11/Scrapyard -10/Materials (discovered 6 exits: [*Mat x3] / [*Min x2] / [*Sub]) -10/Subcaves (discovered 3 exits: [*Mat] / [*Rec] / *Scr) -7/Scraptown -5/Factory -5/Garrison (discovered 3 exits: *Fac x3) -5/Factory -4/Factory -4/Upper Caves -4/Upper Caves (discovered 2 exits: *Res / *Zhi) -4/Zhirov -3/Proximity Caves (discovered 1 exit: *Res) History --------- Turn | Location | Event 1 | -11/Scrapyard | Discovered new exit (range 1) 3 | -11/Scrapyard | Entered Materials 4 | -10/Materials | Met a group of wandering Federalists 30 | -10/Materials | Discovered new exit (range 14) 316 | -10/Materials | Build established: Mutant 389 | -10/Materials | Discovered new exit (range 7) 452 | -10/Materials | Central database locked down 522 | -10/Materials | Discovered new exit (range 16) 664 | -10/Materials | Discovered new exit (range 16) 744 | -10/Materials | Repaired Aluminum Leg 812 | -10/Materials | Discovered new exit (range 16) 1099 | -10/Materials | Discovered new exit (range 13) 1128 | -10/Materials | Entered Subcaves 1129 | -10/Subcaves | Continued accompanying wandering Federalists (5) 1204 | -10/Subcaves | Visited triangular shrine 1214 | -10/Subcaves | Found Prototype Device 1299 | -10/Subcaves | Identified V3-11A's Pendant 1355 | -10/Subcaves | Learned location of 1 exit from Materials 1369 | -10/Subcaves | Befriended Subdweller 1429 | -10/Subcaves | Befriended Subdweller 1471 | -10/Subcaves | Discovered new exit (range 11) 1533 | -10/Subcaves | A swath of the cavern ceiling suddenly collapsed 1772 | -10/Subcaves | Discovered new exit (range 12) 1907 | -10/Subcaves | Approached by friendly Subdweller 2083 | -10/Subcaves | Entered Scraptown 2083 | -7/Scraptown | Accompanied by 1 ally 2192 | -7/Scraptown | Heard Great Nut preacher, LISTEN AND RECITE! 2215 | -7/Scraptown | Learned location of Extension (-4) 2634 | -7/Scraptown | Discovered new exit (range 6) 2684 | -7/Scraptown | Scanned Subdweller tech in exchange for log data 2689 | -7/Scraptown | Learned Research security intel 2690 | -7/Scraptown | Learned Factory garrison access intel 2729 | -7/Scraptown | Visited SPCMW 2765 | -7/Scraptown | Visited Spacefarers 2849 | -7/Scraptown | Visited Awakened 3196 | -7/Scraptown | Visited Fellowship of the Rings 3245 | -7/Scraptown | Visited Cyclists 3342 | -7/Scraptown | Visited UFD Registry 3363 | -7/Scraptown | Visited IN-MT5's Study 3386 | -7/Scraptown | Visited Symbiants 3702 | -7/Scraptown | Entered Factory 3702 | -5/Factory | Accompanied by 1 ally 3702 | -5/Factory | Evolved 10 slots: Power x1, Propulsion x3, Utility x4, Weapon x2 3703 | -5/Factory | Loaded intel: 4 garrison access locations 3771 | -5/Factory | Identified exit to Garrison 3771 | -5/Factory | Entered Garrison 3771 | -5/Garrison | Accompanied by 1 ally 3843 | -5/Garrison | Triggered checkpoint 3872 | -5/Garrison | Triggered checkpoint 4011 | -5/Garrison | Triggered checkpoint 4224 | -5/Garrison | Phase Generator disabled 4237 | -5/Garrison | Learned Factory security intel 4242 | -5/Garrison | Discovered new exit (range 12) 4257 | -5/Garrison | Identified exit to Factory 4287 | -5/Garrison | Triggered checkpoint 4387 | -5/Garrison | Build established: Scavenger-Gunner 4432 | -5/Garrison | Lost 14 parts (2p3n3u6w) 4498 | -5/Garrison | Lost 4 parts (2n2u) 4853 | -5/Garrison | Triggered checkpoint 4906 | -5/Garrison | Rescued a captive Derelict 4985 | -5/Garrison | Discovered exit to Factory (range 7) 5013 | -5/Garrison | Triggered checkpoint 5134 | -5/Garrison | Garrison Relay disabled 5173 | -5/Garrison | Garrison Relay disabled 5223 | -5/Garrison | Triggered checkpoint 5268 | -5/Garrison | Triggered checkpoint 5358 | -5/Garrison | Discovered exit to Factory (range 10) 5954 | -5/Garrison | Build established: Hauler-Tank 6127 | -5/Garrison | Spotted B-75 Beast 6165 | -5/Garrison | Triggered checkpoint 6227 | -5/Garrison | Triggered checkpoint 6480 | -5/Garrison | Destroyed B-75 Beast 6490 | -5/Garrison | Build established: Scavenger-Tank 6556 | -5/Garrison | Found Relay Coupler [Proto] 6562 | -5/Garrison | Found Relay Coupler [Proto] 6856 | -5/Garrison | Installed Relay Interface Framework 6894 | -5/Garrison | Entered Factory 6958 | -5/Factory | Discovered new exit (range 9) 6988 | -5/Factory | Garrison activated, responded to threat 7010 | -5/Factory | Identified exit to Factory 7037 | -5/Factory | Entered another Factory area 7037 | -4/Factory | Evolved 2 slots: Utility x1, Weapon x1 7474 | -4/Factory | Central database locked down 7474 | -4/Factory | Central database locked down 7873 | -4/Factory | Garrison activated, responded to threat 7901 | -4/Factory | Destroyed 13 combat bots 7912 | -4/Factory | Lost 5 parts (2p1n1u1w) 7997 | -4/Factory | Crushed by falling debris 7997 | -4/Factory | System corruption reached 10% 8232 | -4/Factory | Discovered new exit (range 15) 8264 | -4/Factory | Identified exit to Upper Caves 8267 | -4/Factory | Entered Upper Caves 8356 | -4/Upper Caves | Learned Research trap positions 8678 | -4/Upper Caves | Spotted B-86 Titan 8687 | -4/Upper Caves | Destroyed B-86 Titan 8749 | -4/Upper Caves | Attracted the attention of an 0b10 checkpoint 8854 | -4/Upper Caves | Encountered a Warlord checkpoint 8999 | -4/Upper Caves | Discovered new exit (range 12) 9024 | -4/Upper Caves | Identified exit to Upper Caves 9082 | -4/Upper Caves | Entered another Upper Caves area 9286 | -4/Upper Caves | Discovered new exit (range 11) 9311 | -4/Upper Caves | Identified exit to Research 9516 | -4/Upper Caves | Encountered a Warlord checkpoint 10056 | -4/Upper Caves | Spotted B-86 Titan 10065 | -4/Upper Caves | Destroyed B-86 Titan 10167 | -4/Upper Caves | Learned location of Quarantine (-2) 10646 | -4/Upper Caves | Discovered new exit (range 17) 10752 | -4/Upper Caves | Identified exit to Zhirov 10755 | -4/Upper Caves | Entered Zhirov 10755 | -4/Zhirov | Discovered new exit (range 3) 10760 | -4/Zhirov | Identified exit to Proximity Caves 10860 | -4/Zhirov | Entered Proximity Caves 11375 | -3/Proximity Caves | Build established: Scavenger-Gunner 11648 | -3/Proximity Caves | Discovered exit to Research (range 8) 12186 | -3/Proximity Caves | Lost 6 parts (1p4n1w) 12427 | -3/Proximity Caves | Build established: Hauler-Gunner 12584 | -3/Proximity Caves | Core integrity fell below 50% 12590 | -3/Proximity Caves | Core integrity fell below 20% 12612 | -3/Proximity Caves | Destroyed by G-67 Veteran with Plasma Rifle Last Messages --------------- 12579_ Power failure, Antimatter Reactor shutdown. 12579_ Overheating: Antimatter Reactor damaged (-3). 12582_ Overheating: Matter decay (-3). 12584_ Overheating: Core damaged (-207). 12585_ Overheating: Adv. Heat Sink damaged (-10). 12586_ Overheating: System interference. 12586_ Adv. Terrain Scanner temporarily disabled. 12586_ Adv. Heat Sink temporarily disabled. 12587_ Hvy. Linear Accelerator destroyed. 12588_ Power failure, Antimatter Reactor shutdown. 12589_ System corrupted: Energy discharge (-21). 12590_ Overheating: Core damaged (-230). 12591_ Overheating: Energy bleed (-6). 12593_ Imp. Heavy Treads destroyed. 12594_ Adv. Heat Sink destroyed. 12596_ Acquired 12 matter. 12597_ Antimatter Reactor destroyed. 12602_ Enh. Nova Cannon destroyed. 12606_ Weapon Cycler destroyed. 12608_ Broken Enh. Quantum Rifle destroyed. Map ----- +----------------------------------------------------+ | | | ?????????????????????????????????????????????????? | | ?????????????????????????????????#??????????#????? | | ?????????????????????????????#???????????????????? | | ????????????????#????????????##?#??#?????????????? | | ?????????????????????????????????????????????????? | | ?????????????????????????????????#???????????????? | | ????????????????????????????????????#?#??????????? | | ?????????????????#??????#????#????#??????????????? | | ??????????????????#??????#??????????????????#????? | | ??????????????????????????????#????????????????#?? | | ????????????????????#???????????#????????????????? | | ?????????#????????????????????#??#?????????#?#???? | | ????????????????????#????#?????????????????????#?? | | ??????????????????????????????????#????#?????????? | | ??????????##????????#?#?#????????????????#???????? | | ????????????????????????####??#####??####?????#??? | | ???????????????????????## #### ### #????#?### | | ?????????????????#????## #??????## | | ??????????????????????# ##??#???# | | ?????????????????????### ##?#????## | | ?????????????????????##; ##??????## | | ????????????? ? ?????##; ##??##??# | | ???????????#????# ###;; ####??## | | ????????????????# ## ##???# # | | ???????????? ??### %g @ ### ##### # | | ?????????? ??????# ;;;#g % ### # | | ?????????????????# ### % #?## | | #?#?????????????# ??## ## #?## ### | | ??????? ????? ? ???# ## #?# ##?# | | ??????????????????? ## #?## #??# | | ??? ?????????????? ### ?### #??#### | | ##??????????????? ##?# ##?########???# | | ????????#??????## #?### ??#??###??#??# # | | ?#??????????????## ;# ????# ?? ??????????# # | | ##??? ???????????# ## ? ? ?##??? ??????#?## # | | ?#???? ????? ??; ### ????? ?#? ???? ? ??? # | | ????? ??#???? ??### #?# ????????? ????????##### | | ?#???? ???????#??## ????????????##???##??#???#? | | ##???#??????#???## ?#???#?????????????#?????#?? | | ##?#???????????? #???#??????#?#???????#??????? | | ##???#??###?#??? ##?????#####???#????????????? | | #?#???## ####?## #??????# ????????????????? | | #??###"""""##?# ####??## ?????????????????? | | #??##" ### #?##?# #??#?## ????????##? | | ####### #?#?## #??????? ?????????? | | ???##?# "" ####?# #????#??? ????#???? | | ?????## ""### ##### ###?#?????????????? | | ???### "##?## #???????????????? | | ##### #?#?# #?????? ????????? | +----------------------------------------------------+ Best States ------------- Heat Dissipation 116 Energy Generation 45 Energy Capacity 600 Matter Stores 300 Matter Capacity 300 Sight Range 16 Robot Scan Range 19 Terrain Scan Range 20 Terrain Scan Density 10 Additional Mass Support 12 Armor Coverage 225 Weapon Cycling 15 Evasion (%) 55 Targeting Accuracy 5 Target Analysis 6 Recoil Reduction 5 Kinecelleration 30 Item Schematics ----------------- None Robot Schematics ------------------ None Fabricated ------------ Nothing Repaired ---------- Aluminum Leg | 57% | -10/Materials Studied --------- Imp. Treads | -4/Factory | Hacked Alien Tech Used ----------------- None Achievements -------------- Civilization 2243 Drive-By Join The Dark Side Packrat SUBSUB Strength In Numbers Tank Well Done root@ Challenges ------------ None Game ------ Seed ReflectiveGyrokineticBeam Manual? 0 Play Time 01:50:40 Cumulative 54.5 hours Start 2026.01.17 @ 11:00:36 End 2026.01.17 @ 15:20:37 Sessions 5 Manual Loads 0 Difficulty Rogue Special Mode None Game No. 65 Rogue 65 Adventurer 0 Explorer 0 Win Type - Total 1 Types 1/0/0/0/0/0/0/0/0/0 Lore% 25 Gallery% 33 Achievement% 23 Wizard Run 0 Options --------- Layout 0 ASCII 0 Keyboard 0 Movement Mouse Keybinds 0 Fullscreen 0 Font 16/SmallcapsGlow Map View 88x55 Zoom Use 0% Tactical HUD 1 Map Filters NONE Filters NONE Steam 1 RUN: 594cad15-7051-4815-8b11-87dab1a09929